bitfinex/quotes_BTCUSD_20250114
["timestamp","ask_amount","ask_price","bid_price","bid_amount"]
[1736852707627,6.2e-07,96726.0,96725.0,2.17675358]
[1736852707834,6.2e-07,96726.0,96725.0,2.17175358]
[1736852708196,6.2e-07,96726.0,96725.0,2.17675358]
[1736852708393,6.2e-07,96726.0,96725.0,2.16189058]
[1736852708594,6.2e-07,96726.0,96725.0,2.01656516]
[1736852708855,6.2e-07,96726.0,96725.0,1.85170216]
[1736852709208,6.2e-07,96726.0,96725.0,1.74747524]
[1736852709410,0.08200062,96726.0,96725.0,1.74747524]
[1736852709616,0.08379381,96726.0,96725.0,1.74584522]
[1736852710011,0.08379381,96726.0,96725.0,1.73684522]
[1736852710362,0.08379319,96726.0,96725.0,1.51764393]
[1736852710590,0.08479319,96726.0,96725.0,1.52264393]
[1736852711041,0.08379319,96726.0,96725.0,1.51764393]
[1736852711412,0.08379319,96726.0,96725.0,1.51964393]
[1736852711621,0.08379319,96726.0,96725.0,0.01964393]
[1736852712131,0.08379319,96726.0,96725.0,1.51964393]
[1736852712956,0.08379319,96726.0,96725.0,1.53513029]
[1736852715178,0.08379319,96726.0,96725.0,0.03513029]
[1736852715353,0.08379319,96726.0,96721.0,0.01012319]
[1736852715560,0.08379319,96726.0,96725.0,1.5]
[1736852715967,0.00179319,96726.0,96725.0,1.60422692]
[1736852717302,0.00179319,96726.0,96725.0,1.60622692]
[1736852718489,0.00179319,96726.0,96725.0,1.65292692]
[1736852718694,0.00179319,96726.0,96725.0,1.80292692]
[1736852718896,0.00179319,96726.0,96725.0,1.45622692]
[1736852720275,0.00179319,96726.0,96725.0,1.15622692]
[1736852721736,0.00179319,96726.0,96725.0,0.85622692]
[1736852721963,0.00179319,96726.0,96725.0,0.87108992]
[1736852722335,0.00179319,96726.0,96725.0,0.70622692]
[1736852723231,0.00179319,96726.0,96725.0,0.40622692]
[1736852725198,0.00179319,96726.0,96725.0,0.302]
[1736852732265,0.00379319,96726.0,96725.0,0.302]
[1736852733043,0.00379319,96726.0,96725.0,0.40622692]
[1736852733966,0.00379319,96726.0,96725.0,0.42171884]
[1736852739677,0.00379319,96726.0,96725.0,0.31749192]
[1736852739885,0.07909319,96726.0,96725.0,0.31749192]
[1736852742726,0.07909319,96726.0,96725.0,0.01749192]
[1736852743314,0.07909319,96726.0,96725.0,1.51749192]
[1736852744869,0.00379319,96726.0,96725.0,1.51834572]
[1736852754281,0.00379319,96726.0,96725.0,1.5028538]
[1736852758422,0.00379319,96726.0,96725.0,0.0028538]
[1736852758793,0.00379319,96726.0,96725.0,1.5028538]
[1736852761014,0.00379319,96726.0,96725.0,1.60708072]
[1736852761448,0.00379319,96726.0,96725.0,1.75708072]
[1736852762108,0.00379319,96726.0,96725.0,1.77194372]
[1736852762298,0.00379319,96726.0,96725.0,2.03485772]
[1736852762895,0.00379319,96726.0,96725.0,1.77194372]
[1736852763708,0.00379319,96726.0,96725.0,1.78745412]
[1736852766621,0.00379319,96726.0,96725.0,2.19091854]
[1736852766848,0.00163114,96741.0,96736.0,0.014863]
[1736852767008,0.085137,96772.0,96736.0,0.014863]
[1736852767009,0.00163174,96745.0,96744.0,0.014863]
[1736852767237,0.00163174,96745.0,96744.0,1.09468865]
[1736852767437,0.00163174,96745.0,96744.0,1.09365534]
[1736852767667,0.00163174,96745.0,96744.0,2.59365534]
[1736852768291,0.00163174,96745.0,96744.0,2.60265534]
[1736852768491,0.00163174,96745.0,96744.0,2.648722]
[1736852769096,0.00163174,96745.0,96744.0,2.319152]
[1736852769694,0.00163174,96745.0,96744.0,2.310152]
[1736852770268,0.0821,96765.0,96764.0,0.206688]
[1736852770443,0.0821,96765.0,96764.0,0.31091492]
[1736852770444,0.08259979,96765.0,96764.0,0.31091492]
[1736852772006,0.08259979,96765.0,96764.0,1.82458992]
[1736852773704,0.08259979,96765.0,96764.0,0.220363]
[1736852774542,0.08259979,96765.0,96764.0,0.23047628]
[1736852775560,0.08259979,96765.0,96764.0,0.22080128]
[1736852776976,0.08259979,96765.0,96764.0,0.3250282]
[1736852777529,0.08259979,96765.0,96764.0,1.8250282]
[1736852778411,0.08259979,96765.0,96764.0,1.8347032]
[1736852780328,0.08439236,96765.0,96764.0,1.8347032]
[1736852780670,0.00229236,96765.0,96764.0,1.8347032]
[1736852785637,0.00229236,96765.0,96764.0,0.3347032]
[1736852786241,0.00229236,96765.0,96764.0,1.8347032]
[1736852789374,0.00229236,96765.0,96764.0,1.85016338]
[1736852791990,0.00229236,96765.0,96764.0,1.53924846]
[1736852792203,0.08179236,96765.0,96764.0,0.02913518]
[1736852792456,0.10210394,96765.0,96764.0,0.02913518]
[1736852793209,0.10210394,96765.0,96764.0,0.013675]
[1736852793690,0.10310394,96765.0,96764.0,0.013675]
[1736852793888,0.10310394,96765.0,96764.0,0.009675]
[1736852794111,0.10210394,96765.0,96764.0,0.009675]
[1736852794363,0.10210394,96765.0,96764.0,0.010675]
[1736852794583,0.10210394,96765.0,96764.0,0.02613518]
[1736852794584,0.10310394,96765.0,96764.0,0.02613518]
[1736852795065,0.08279236,96765.0,96764.0,0.02613518]
[1736852795311,0.08279236,96765.0,96764.0,0.14078783]
[1736852796299,0.08179236,96765.0,96764.0,0.14078783]
[1736852796498,0.08279236,96765.0,96764.0,0.14078783]
[1736852796840,0.08279236,96765.0,96764.0,1.64078783]
[1736852797042,0.08179236,96765.0,96764.0,1.64078783]
[1736852797443,0.08279236,96765.0,96764.0,1.64078783]
[1736852801370,0.00329236,96765.0,96764.0,1.64078783]
[1736852803977,0.00329236,96765.0,96764.0,0.14078783]
[1736852804478,0.00329236,96765.0,96764.0,1.64078783]
[1736852806285,0.00329236,96765.0,96764.0,0.14078783]
[1736852807199,0.00325102,96765.0,96764.0,0.14078783]
[1736852810197,0.00325102,96765.0,96764.0,1.64078783]
[1736852813191,0.00325102,96765.0,96764.0,1.8263594]
[1736852813370,0.00325102,96765.0,96764.0,0.3263594]
[1736852813842,0.00325102,96765.0,96764.0,1.81089922]
[1736852814165,0.00325102,96765.0,96764.0,1.62532765]
[1736852815720,0.00325102,96765.0,96764.0,1.62618105]
[1736852817106,0.00325102,96765.0,96764.0,0.12618105]
[1736852817461,0.00325102,96765.0,96764.0,1.62618105]
[1736852819904,0.00325102,96765.0,96764.0,1.85814551]
[1736852820680,0.00325102,96765.0,96764.0,0.35814551]
[1736852821367,0.00325102,96765.0,96764.0,0.12618105]
[1736852822875,0.00325102,96765.0,96764.0,0.35814551]
[1736852825055,0.00325102,96765.0,96764.0,1.85814551]
[1736852825488,0.00325102,96765.0,96764.0,2.05531985]
[1736852825723,0.00179299,96784.0,96782.0,0.206649]
[1736852825973,0.00184293,96783.0,96782.0,0.31087592]
[1736852826438,0.00184293,96783.0,96782.0,1.81087592]
[1736852827201,0.00184293,96783.0,96782.0,1.83606145]
[1736852827830,0.00184293,96783.0,96782.0,1.84006145]
[1736852828209,0.00184293,96783.0,96782.0,1.84106145]
[1736852829051,0.00184293,96783.0,96782.0,1.85124151]
[1736852829582,0.00184293,96783.0,96782.0,1.87217347]
[1736852832764,0.00184293,96783.0,96782.0,1.85124151]
[1736852833667,0.08104293,96783.0,96782.0,1.54036559]
[1736852833872,0.08104293,96783.0,96782.0,0.03018553]
[1736852834316,0.24045151,96783.0,96782.0,0.03018553]
[1736852834570,0.24045151,96783.0,96782.0,0.02918553]
[1736852835062,0.24045151,96783.0,96782.0,0.02518553]
[1736852835812,0.0809,96771.0,96770.0,0.01551053]
[1736852837515,0.0809,96771.0,96770.0,0.02518165]
[1736852837907,0.0809,96771.0,96770.0,0.02618165]
[1736852838076,0.0809,96771.0,96770.0,0.03218165]
[1736852839686,0.0809,96771.0,96770.0,1.51667112]
[1736852840453,0.0809,96771.0,96770.0,1.51067112]
[1736852840669,0.0809,96771.0,96770.0,1.50967112]
[1736852840884,0.0809,96771.0,96770.0,1.51067112]
[1736852841054,0.0819,96771.0,96770.0,1.50967112]
[1736852841408,0.0819,96771.0,96770.0,1.52518165]
[1736852841810,0.0809,96771.0,96770.0,1.52518165]
[1736852842015,0.0819,96771.0,96770.0,1.52518165]
[1736852845690,0.0819,96771.0,96770.0,0.02518165]
[1736852847293,0.0819,96771.0,96770.0,0.00967112]
[1736852853499,0.001,96771.0,96770.0,0.11389804]
[1736852853681,0.001,96771.0,96770.0,1.61389804]
[1736852854472,0.09991158,96778.0,96770.0,1.61389804]
[1736852854709,0.09991158,96778.0,96770.0,0.00967112]
[1736852854887,0.09991158,96778.0,96770.0,0.01067112]
[1736852854888,0.001,96771.0,96770.0,0.01067112]
[1736852855356,0.0806,96771.0,96770.0,0.01067112]
[1736852856095,0.0796,96771.0,96770.0,0.01067112]
[1736852857301,0.0806,96771.0,96770.0,0.01067112]
[1736852857729,0.0796,96771.0,96770.0,0.00967112]
[1736852858206,0.0806,96771.0,96770.0,0.00967112]
[1736852858668,0.0806,96771.0,96770.0,1.50967112]
[1736852859077,0.08032617,96771.0,96770.0,1.50967112]
[1736852860638,0.08032617,96771.0,96770.0,1.52516135]
[1736852862674,0.08032617,96771.0,96770.0,0.02516135]
[1736852863079,0.08032617,96771.0,96770.0,1.52516135]
[1736852863336,0.16546317,96771.0,96770.0,0.02516135]
[1736852863541,0.23387475,96771.0,96770.0,0.02516135]
[1736852863924,0.23472865,96771.0,96770.0,0.02516135]
[1736852865267,0.23472865,96771.0,96770.0,0.00967112]
[1736852866662,0.24245465,96771.0,96770.0,0.00967112]
[1736852870968,0.02031158,96769.0,96768.0,0.00179214]
[1736852872007,0.02803758,96769.0,96768.0,0.01147917]
[1736852872894,0.02803758,96769.0,96768.0,0.01247917]
[1736852873251,0.02903758,96769.0,96768.0,0.01247917]
[1736852874449,0.02903758,96769.0,96768.0,0.00279214]
[1736852876999,0.02903758,96769.0,96768.0,0.01247714]
[1736852880011,0.03499758,96769.0,96768.0,0.01247714]
[1736852880460,0.03499758,96769.0,96768.0,1.51247714]
[1736852881296,0.03499758,96769.0,96768.0,0.01247714]
[1736852883518,0.11409758,96769.0,96768.0,0.01247714]
[1736852884717,0.19923458,96769.0,96768.0,0.01247714]
[1736852889727,0.19923458,96769.0,96768.0,0.00279214]
[1736852890155,0.5000615,96769.0,96768.0,0.00279214]
[1736852890360,0.6230615,96769.0,96768.0,0.00279214]
[1736852890561,1.0482615,96769.0,96768.0,0.00279214]
[1736852890708,1.0482615,96769.0,96768.0,1.4e-07]
[1736852890888,1.0482615,96769.0,96746.0,0.00968919]
[1736852890889,0.53783458,96765.0,96746.0,0.00968919]
[1736852891094,0.8150615,96765.0,96746.0,0.00968919]
[1736852891293,0.8227875,96765.0,96746.0,0.00968919]
[1736852891754,0.96151486,96765.0,96746.0,0.00968919]
[1736852892502,0.96151486,96765.0,96745.0,0.0008536]
[1736852892703,0.8227875,96765.0,96745.0,0.0008536]
[1736852893163,0.8277875,96765.0,96764.0,0.0018534]
[1736852893314,0.8327875,96765.0,96764.0,0.0028534]
[1736852893522,0.8277875,96765.0,96764.0,0.0018534]
[1736852893956,0.8327875,96765.0,96764.0,0.0028534]
[1736852899777,0.02031158,96735.0,96723.0,0.00055584]
[1736852900079,0.206758,96732.0,96723.0,0.10478276]
[1736852900835,0.02031158,96734.0,96723.0,0.00055584]
[1736852900836,0.206773,96724.0,96723.0,0.00055584]
[1736852901036,0.206766,96728.0,96723.0,0.00105563]
[1736852901292,0.085137,96730.0,96723.0,0.00105563]
[1736852901293,0.085137,96729.0,96723.0,0.00105563]
[1736852901436,0.206773,96725.0,96723.0,0.00405563]
[1736852902025,0.10544858,96724.0,96723.0,0.00405563]
[1736852902227,0.31222158,96724.0,96723.0,0.00405563]
[1736852902651,0.31222158,96724.0,96723.0,0.00305563]
[1736852902858,0.02031158,96724.0,96723.0,0.00305563]
[1736852903100,0.206757,96732.0,96723.0,0.00305563]
[1736852903101,0.00596,96732.0,96723.0,0.00905563]
[1736852903272,0.00596,96732.0,96725.0,0.206771]
[1736852903723,0.10544858,96733.0,96725.0,0.206771]
[1736852904270,0.10544858,96733.0,96726.0,1.5]
[1736852904469,0.10544858,96733.0,96727.0,0.206767]
[1736852904671,0.10544858,96733.0,96725.0,0.206771]
[1736852904847,0.10644858,96733.0,96725.0,0.206771]
[1736852905049,0.001,96732.0,96726.0,1.5]
[1736852905614,0.085137,96729.0,96726.0,1.5]
[1736852905818,0.085137,96729.0,96723.0,0.00105563]
[1736852905819,0.085137,96724.0,96723.0,0.00105563]
[1736852906241,0.10544858,96724.0,96723.0,0.00105563]
[1736852907136,0.10544858,96724.0,96723.0,0.00305563]
[1736852909436,0.10644858,96724.0,96723.0,0.00105563]
[1736852909792,0.10544858,96724.0,96723.0,0.00105563]
[1736852911442,0.10644858,96724.0,96723.0,0.00105563]
[1736852913916,0.50157083,96724.0,96723.0,0.00105563]
[1736852914098,0.61171466,96724.0,96723.0,0.00105563]
[1736852914317,0.61171466,96724.0,96707.0,0.0008538]
[1736852914318,0.43775358,96709.0,96707.0,0.0008538]
[1736852914519,0.43775358,96709.0,96708.0,0.00100347]
[1736852914520,0.7979405,96709.0,96708.0,0.00100347]
[1736852914849,0.94907642,96709.0,96708.0,0.00100347]
[1736852915098,0.47844858,96708.0,96707.0,2.7e-07]
[1736852915300,0.55484858,96704.0,96701.0,0.0008543]
[1736852915528,0.6590755,96704.0,96703.0,0.00090409]
[1736852915713,0.7121746,96704.0,96703.0,0.00090409]
[1736852915868,0.68403868,96704.0,96703.0,0.00090409]
[1736852916073,0.7882656,96704.0,96703.0,0.00090409]
[1736852916276,0.7882656,96704.0,96701.0,3.9e-07]
[1736852916277,0.45544858,96702.0,96701.0,3.9e-07]
[1736852916478,0.6590755,96702.0,96701.0,3.9e-07]
[1736852916904,0.68403868,96702.0,96701.0,3.9e-07]
[1736852917509,0.6620755,96702.0,96701.0,0.00100039]
[1736852917727,0.7912656,96702.0,96701.0,0.00100039]
[1736852918529,0.80495174,96702.0,96701.0,0.00100039]
[1736852919085,0.77998856,96702.0,96701.0,0.00100039]
[1736852919492,0.67576164,96702.0,96701.0,0.00100039]
[1736852919609,0.57576164,96702.0,96701.0,0.00100039]
[1736852920006,0.45276164,96702.0,96701.0,0.00100039]
[1736852920273,0.43841006,96702.0,96701.0,0.00100039]
[1736852920654,0.55872164,96702.0,96701.0,0.00100039]
[1736852923116,0.58172164,96702.0,96701.0,0.00100039]
[1736852927874,0.55872164,96702.0,96701.0,0.00100039]
[1736852929735,0.45872164,96702.0,96701.0,0.00100039]
[1736852932104,0.30872164,96702.0,96701.0,0.00100039]
[1736852932577,0.23232164,96702.0,96701.0,0.00100039]
[1736852932836,0.04295772,96702.0,96701.0,0.00100039]
[1736852933016,0.02264614,96702.0,96701.0,0.00100039]
[1736852933191,0.10778314,96702.0,96701.0,0.00100039]
[1736852933600,0.12809472,96702.0,96701.0,0.00100039]
[1736852933812,0.12040858,96702.0,96701.0,0.00100039]
[1736852934025,0.11440858,96702.0,96701.0,0.00100039]
[1736852934230,0.11940858,96702.0,96701.0,0.00100039]
[1736852934586,0.11940858,96702.0,96701.0,3.9e-07]
[1736852934587,0.11640858,96702.0,96701.0,3.9e-07]
[1736852934763,0.11524304,96702.0,96701.0,0.00100039]
[1736852934963,0.12120304,96702.0,96701.0,0.00100039]
[1736852937862,0.12887731,96702.0,96701.0,0.00100039]
[1736852938920,0.04374031,96702.0,96701.0,0.00100039]
[1736852939145,0.01746873,96702.0,96701.0,0.00100039]
[1736852939359,0.10856573,96702.0,96701.0,0.00100039]
[1736852939777,0.01746873,96702.0,96701.0,0.00100039]
[1736852939902,0.00946873,96702.0,96701.0,3.9e-07]
[1736852940101,0.00946873,96702.0,96701.0,0.07970039]
[1736852940102,0.01346873,96702.0,96701.0,0.07970039]
[1736852940365,0.01646873,96702.0,96701.0,0.07970039]
[1736852940585,0.01646873,96702.0,96701.0,0.07870039]
[1736852940727,0.01546873,96702.0,96701.0,0.07970039]
[1736852940930,0.01646873,96702.0,96701.0,0.08933056]
[1736852941274,0.01046873,96702.0,96701.0,0.08833056]
[1736852941509,0.00279446,96702.0,96701.0,0.08933056]
[1736852944313,0.00279446,96702.0,96701.0,0.01063056]
[1736852947384,0.00279446,96702.0,96701.0,0.11485748]
[1736852948051,0.00279446,96702.0,96701.0,0.11589148]
[1736852948320,0.00279446,96702.0,96701.0,1.61589148]
[1736852948524,0.00279446,96702.0,96701.0,1.66255748]
[1736852949290,0.00279446,96702.0,96701.0,1.74125748]
[1736852949782,0.00179446,96702.0,96701.0,1.74025748]
[1736852949969,0.00179446,96702.0,96701.0,1.75025748]
[1736852950393,0.00179446,96702.0,96701.0,1.74225748]
[1736852950625,0.00179446,96702.0,96701.0,1.89825748]
[1736852950796,0.00179446,96702.0,96701.0,2.42256248]
[1736852951000,0.00179446,96702.0,96701.0,2.95916248]
[1736852951536,0.00179446,96702.0,96701.0,2.95116248]
[1736852952260,0.00179446,96702.0,96701.0,3.13502376]
[1736852952429,0.00179446,96702.0,96701.0,3.13802376]
[1736852952586,0.00179446,96702.0,96701.0,2.95216248]
[1736852953002,0.00179446,96702.0,96701.0,2.94916248]
[1736852953191,0.00179446,96702.0,96701.0,2.95316248]
[1736852953389,0.00179446,96702.0,96701.0,2.96216248]
[1736852953595,0.00179446,96702.0,96701.0,2.46872048]
[1736852953937,0.00179446,96702.0,96701.0,2.16004348]
[1736852954140,0.00179446,96702.0,96701.0,2.11165148]
[1736852954502,0.00179446,96702.0,96701.0,2.29672897]
[1736852955414,0.00179446,96702.0,96701.0,2.11165148]
[1736852956960,0.00179446,96702.0,96701.0,2.09678848]
[1736852958644,0.00179446,96702.0,96701.0,1.90325748]
[1736852958855,0.00179446,96702.0,96701.0,1.85555748]
[1736852962085,0.00179446,96702.0,96701.0,1.77685748]
[1736852972012,0.00179446,96702.0,96701.0,1.79172048]
[1736852972487,0.00179446,96702.0,96701.0,1.82396572]
[1736852973651,0.00179446,96702.0,96701.0,1.80910272]
[1736852975681,0.00179446,96702.0,96701.0,1.77685748]
[1736852975919,0.00179446,96702.0,96701.0,1.96193497]
[1736852976341,0.00179446,96702.0,96701.0,1.9523048]
[1736852976466,0.00179446,96702.0,96701.0,1.76722731]
[1736852977351,0.00179446,96702.0,96701.0,1.79950559]
[1736852977536,0.00179446,96702.0,96701.0,1.79950465]
[1736852977667,0.00179446,96702.0,96701.0,1.81436765]
[1736852979006,0.00179446,96702.0,96701.0,2.04693473]
[1736852979204,0.00179446,96702.0,96701.0,2.26931665]
[1736852979512,0.00179446,96702.0,96701.0,2.05836165]
[1736852979992,0.00179446,96702.0,96701.0,1.82250465]
[1736852981120,0.00179446,96702.0,96701.0,1.79950465]
[1736852981860,0.00179446,96702.0,96701.0,2.03153674]
[1736852983024,0.00179446,96702.0,96701.0,2.04123112]
[1736852983227,0.00179446,96702.0,96701.0,1.80919903]
[1736852984975,0.00179446,96702.0,96701.0,1.65919903]
[1736852985365,0.00179446,96702.0,96701.0,1.62692169]
[1736852986119,0.00179446,96702.0,96701.0,1.81285722]
[1736852986324,0.00179446,96702.0,96701.0,1.80885722]
[1736852986529,0.00179446,96702.0,96701.0,1.81085722]
[1736852986878,0.00179446,96702.0,96701.0,1.80185722]
[1736852987113,0.00179446,96702.0,96701.0,1.80985722]
[1736852989545,0.00179446,96702.0,96701.0,1.62392169]
[1736852994191,0.00179446,96702.0,96701.0,1.80996054]
[1736852996146,0.00179446,96702.0,96701.0,1.85647025]
[1736852996323,0.00179446,96702.0,96701.0,1.88877487]
[1736852996820,0.00179446,96702.0,96701.0,1.65622631]
[1736853000053,0.00179446,96702.0,96701.0,1.67108931]
[1736853000256,0.00179446,96702.0,96701.0,1.82108931]
[1736853001152,0.00179446,96702.0,96701.0,1.93008931]
[1736853001366,0.00179446,96702.0,96701.0,1.82108931]
[1736853005282,0.00179446,96702.0,96701.0,2.14128931]
[1736853005683,0.00179446,96702.0,96701.0,2.16428931]
[1736853005902,4.6e-07,96702.0,96701.0,2.81741573]
[1736853006111,4.6e-07,96702.0,96701.0,2.32417773]
[1736853006693,4.6e-07,96702.0,96701.0,2.86077773]
[1736853006897,0.00179403,96725.0,96715.0,0.014863]
[1736853007125,0.00179403,96725.0,96724.0,0.206773]
[1736853007447,0.00179403,96725.0,96724.0,0.31099992]
[1736853007659,0.00179403,96725.0,96724.0,1.81099992]
[1736853008411,0.00179403,96725.0,96724.0,1.8266943]
[1736853009851,0.00179403,96725.0,96724.0,1.8306943]
[1736853011318,0.00179403,96725.0,96724.0,1.83067173]
[1736853012582,0.00179403,96725.0,96724.0,1.85099984]
[1736853012988,0.00179403,96725.0,96724.0,2.08320754]
[1736853013593,0.00179403,96725.0,96724.0,2.09564247]
[1736853014495,0.00179403,96725.0,96724.0,1.86343477]
[1736853016940,0.00179403,96725.0,96724.0,2.04914029]
[1736853017755,0.00179403,96725.0,96724.0,1.86343477]
[1736853022697,0.0824,96748.0,96747.0,0.206724]
[1736853023792,0.0824,96748.0,96747.0,0.21639581]
[1736853024186,0.0824,96748.0,96747.0,0.21839581]
[1736853024823,0.0824,96748.0,96747.0,0.22139581]
[1736853026432,0.0824,96748.0,96747.0,0.01467181]
[1736853026664,0.167537,96748.0,96747.0,0.01467181]
[1736853027231,0.167537,96748.0,96747.0,0.00967181]
[1736853027432,0.167537,96748.0,96747.0,0.01067181]
[1736853028182,0.167537,96748.0,96747.0,0.00967181]
[1736853028339,0.16932977,96748.0,96747.0,0.00967181]
[1736853028959,0.23484135,96748.0,96747.0,0.00967181]
[1736853029530,0.0824,96746.0,96742.0,0.206735]
[1736853030154,0.10271158,96746.0,96742.0,0.206735]
[1736853030326,0.10271158,96746.0,96743.0,1.5]
[1736853030535,0.10271158,96746.0,96737.0,0.206744]
[1736853030536,0.0762,96742.0,96737.0,0.206744]
[1736853030750,0.085137,96731.0,96725.0,0.206771]
[1736853030968,0.02031158,96730.0,96726.0,1.5]
[1736853031119,0.02031158,96730.0,96727.0,0.206767]
[1736853031844,0.02031158,96730.0,96727.0,0.413534]
[1736853032510,0.02031158,96730.0,96729.0,0.206763]
[1736853033510,0.02031158,96730.0,96729.0,0.21644412]
[1736853034276,0.02031158,96730.0,96729.0,0.22044412]
[1736853034614,0.02031158,96730.0,96729.0,1.72044412]
[1736853035549,0.0762,96732.0,96729.0,1.82467104]
[1736853035834,0.0762,96732.0,96731.0,0.206758]
[1736853036061,0.0762,96732.0,96731.0,0.31098492]
[1736853036421,0.0762,96732.0,96731.0,0.32066604]
[1736853037151,0.0762,96732.0,96731.0,0.32366604]
[1736853037554,0.0762,96732.0,96731.0,0.32666604]
[1736853038992,0.02031158,96735.0,96732.0,0.206755]
[1736853039194,0.0762,96742.0,96733.0,0.10422692]
[1736853039333,0.0762,96742.0,96739.0,0.20674]
[1736853039534,0.0762,96742.0,96741.0,0.206737]
[1736853040164,0.0762,96742.0,96741.0,1.706737]
[1736853040773,0.0762,96742.0,96741.0,1.71641812]
[1736853042134,0.0762,96742.0,96741.0,1.71841812]
[1736853042702,0.0762,96742.0,96741.0,1.71641812]
[1736853042900,0.0762,96742.0,96741.0,1.71841812]
[1736853043297,0.0762,96742.0,96741.0,1.51168112]
[1736853043599,0.09651158,96742.0,96741.0,0.01168112]
[1736853043797,0.18164858,96742.0,96741.0,0.01168112]
[1736853045804,0.18164858,96742.0,96741.0,0.00968112]
[1736853045970,0.18164858,96742.0,96741.0,0.01168112]
[1736853046381,0.18164858,96742.0,96741.0,0.00968112]
[1736853046719,0.18164858,96742.0,96741.0,0.01168112]
[1736853047660,0.18164858,96742.0,96741.0,0.00926274]
[1736853053055,0.18164858,96742.0,96741.0,0.01011614]
[1736853063117,0.08164858,96742.0,96741.0,0.01011614]
[1736853065606,0.08344073,96742.0,96741.0,0.01011614]
[1736853066251,0.16084073,96742.0,96741.0,0.01011614]
[1736853088962,0.16084073,96742.0,96741.0,0.0028534]
[1736853092465,0.20994073,96742.0,96741.0,0.0028534]
[1736853093284,0.20994073,96742.0,96741.0,0.0008534]
[1736853095697,0.21094073,96742.0,96741.0,0.0008534]
[1736853096014,0.20994073,96742.0,96741.0,0.0008534]
[1736853096472,0.21094073,96742.0,96741.0,0.0008534]
[1736853107386,0.19062915,96742.0,96741.0,0.0008534]
[1736853107601,0.21094073,96742.0,96741.0,0.0008534]
[1736853118539,0.21690073,96742.0,96741.0,0.0008534]
[1736853119229,0.21685276,96742.0,96741.0,0.0008534]
[1736853120044,0.11914118,96742.0,96741.0,0.0008534]
[1736853120278,0.13945276,96742.0,96741.0,0.0008534]
[1736853125573,0.11914118,96742.0,96741.0,0.0008534]
[1736853125774,0.13945276,96742.0,96741.0,0.0008534]
[1736853127846,0.21465276,96742.0,96741.0,0.0008534]
[1736853140311,0.13945276,96742.0,96741.0,0.0008534]
[1736853149004,0.22005276,96742.0,96741.0,0.0008534]
[1736853160250,0.32427968,96742.0,96741.0,0.0008534]
[1736853161974,0.41680866,96742.0,96741.0,0.0008534]
[1736853168213,0.43301922,96742.0,96741.0,0.0008534]
[1736853169671,0.41680866,96742.0,96741.0,0.0008534]
[1736853171895,0.32427968,96742.0,96741.0,0.0008534]
[1736853183991,0.47427968,96742.0,96741.0,0.0008534]
[1736853184391,0.59727968,96742.0,96741.0,0.0008534]
[1736853185565,0.59131968,96742.0,96741.0,0.0008534]
[1736853185805,0.59623968,96742.0,96741.0,0.0008534]
[1736853185998,0.59823968,96742.0,96741.0,0.0008534]
[1736853186479,0.83504834,96742.0,96741.0,0.0018534]
[1736853186930,0.83004834,96742.0,96741.0,0.0008534]
[1736853187130,0.83004834,96742.0,96741.0,0.0018534]
[1736853187131,0.83504834,96742.0,96741.0,0.0018534]
[1736853187550,0.83304834,96742.0,96741.0,0.0018534]
[1736853187745,0.83604834,96742.0,96741.0,0.0018534]
[1736853188455,0.85225978,96742.0,96741.0,0.0018534]
[1736853189636,0.83604834,96742.0,96741.0,0.0018534]
[1736853191715,0.60423968,96742.0,96741.0,0.0018534]
[1736853195205,0.70423968,96742.0,96741.0,0.0018534]
[1736853195982,0.70423968,96742.0,96741.0,4e-07]
[1736853195983,1.04027526,96742.0,96741.0,4e-07]
[1736853196797,0.8084666,96742.0,96741.0,4e-07]
[1736853197662,0.82925485,96742.0,96741.0,4e-07]
[1736853198272,0.84546779,96742.0,96741.0,4e-07]
[1736853199179,1.12326516,96742.0,96741.0,4e-07]
[1736853199787,1.43225222,96742.0,96741.0,4e-07]
[1736853201383,1.15445485,96742.0,96741.0,4e-07]
[1736853203286,1.43225222,96742.0,96741.0,4e-07]
[1736853203778,1.43225222,96742.0,96741.0,2e-07]
[1736853206180,1.15445485,96742.0,96741.0,2e-07]
[1736853208997,1.17066739,96742.0,96741.0,2e-07]
[1736853209725,1.15445485,96742.0,96741.0,2e-07]
[1736853228121,1.15445485,96742.0,96725.0,8e-07]
[1736853228122,0.43160061,96726.0,96725.0,8e-07]
[1736853228342,0.76559653,96726.0,96725.0,8e-07]
[1736853229384,0.76659653,96726.0,96725.0,8e-07]
[1736853229834,0.77059653,96726.0,96725.0,8e-07]
[1736853231885,1.00200352,96726.0,96725.0,8e-07]
[1736853235927,1.02280243,96726.0,96725.0,8e-07]
[1736853236585,0.79731544,96726.0,96725.0,8e-07]
[1736853237045,0.80812095,96726.0,96725.0,8e-07]
[1736853237463,0.80412095,96726.0,96725.0,8e-07]
[1736853237675,0.80312095,96726.0,96725.0,8e-07]
[1736853238516,0.80612095,96726.0,96725.0,8e-07]
[1736853238756,0.81512095,96726.0,96725.0,0.0010008]
[1736853245362,0.88732236,96726.0,96725.0,8e-07]
[1736853245759,0.81512095,96726.0,96725.0,8e-07]
[1736853249146,0.81512095,96726.0,96725.0,0.0008546]
[1736853250121,0.81512095,96726.0,96725.0,6e-07]
[1736853251279,0.80920095,96726.0,96725.0,6e-07]
[1736853251479,0.81512095,96726.0,96725.0,6e-07]
[1736853251885,0.80920095,96726.0,96725.0,6e-07]
[1736853252087,0.87045357,96726.0,96725.0,6e-07]
[1736853256699,0.06128903,96688.0,96679.0,0.01073871]
[1736853256930,0.06128903,96688.0,96678.0,0.01319582]
[1736853257107,0.206853,96687.0,96678.0,0.01319582]
[1736853257286,0.206855,96686.0,96679.0,1.5]
[1736853257759,0.206862,96683.0,96671.0,0.01265401]
[1736853257945,0.06128903,96681.0,96679.0,0.004]
[1736853258419,0.06128903,96681.0,96680.0,0.02522931]
[1736853259349,0.06228903,96681.0,96680.0,0.02522931]
[1736853259578,0.06128903,96681.0,96680.0,0.02522931]
[1736853259765,0.06128903,96681.0,96680.0,0.08670358]
[1736853260406,0.06228903,96681.0,96680.0,0.09370358]
[1736853260623,0.06328903,96681.0,96680.0,0.09870358]
[1736853261685,0.06228903,96681.0,96680.0,0.09170358]
[1736853261891,0.06228903,96681.0,96680.0,0.10070358]
[1736853262125,0.06328903,96681.0,96680.0,0.10070358]
[1736853262351,0.06228903,96681.0,96680.0,0.09170358]
[1736853262574,0.06228903,96681.0,96680.0,0.09370358]
[1736853262799,0.06228903,96681.0,96680.0,0.09770358]
[1736853266083,0.001,96681.0,96680.0,0.09770358]
[1736853266958,0.001,96681.0,96680.0,1.59770358]
[1736853267373,0.001,96681.0,96680.0,1.61321799]
[1736853268467,0.001,96681.0,96680.0,0.11321799]
[1736853273923,0.001,96681.0,96680.0,0.10821799]
[1736853284603,0.00279403,96681.0,96680.0,0.10821799]
[1736853288007,0.00279403,96681.0,96680.0,0.21347916]
[1736853288221,0.00279403,96681.0,96680.0,0.21827916]
[1736853288450,0.00279403,96681.0,96680.0,0.39957475]